[Event "Titled Tuesday Blitz March 07 Late 2023"]
[White "Rytenko, Vsevolod"]
[Black "Davidson, Kevin"]
[WhiteFideId "14133040"]
[BlackFideId "2056810"]
[WhiteElo "2262"]
[BlackElo "2151"]
[Result "1-0"]
[Round "04"]
[TimeControl "180+2"]
[Date "2023.03.07"]
[WhiteClock "0:00:27"]
[BlackClock "0:00:01"]

1. e4 {[%clk 0:02:52]}  c5 {[%clk 0:02:59]} 2. Nf3 {[%clk 0:02:51]}  d6 {[%clk 0:02:59]} 3. d4 {[%clk 0:02:51]}  cxd4 {[%clk 0:03:00]} 4. Nxd4 {[%clk 0:02:51]}  Nf6 {[%clk 0:03:01]} 5. Nc3 {[%clk 0:02:51]}  a6 {[%clk 0:03:01]} 6. Bg5 {[%clk 0:01:48]}  e6 {[%clk 0:03:01]} 7. f4 {[%clk 0:01:48]}  Be7 {[%clk 0:03:01]} 8. Qf3 {[%clk 0:01:48]}  h6 {[%clk 0:03:01]} 9. Bh4 {[%clk 0:01:47]}  Qc7 {[%clk 0:03:01]} 10. O-O-O {[%clk 0:01:47]}  Nbd7 {[%clk 0:03:01]} 11. f5 {[%clk 0:01:47]}  Ne5 {[%clk 0:02:43]} 12. Qg3 {[%clk 0:01:44]}  g5 {[%clk 0:02:36]} 13. fxg6 {[%clk 0:01:42]}  fxg6 {[%clk 0:02:37]} 14. Bxf6 {[%clk 0:01:27]}  Bxf6 {[%clk 0:02:37]} 15. Be2 {[%clk 0:01:28]}  O-O {[%clk 0:02:23]} 16. h4 {[%clk 0:01:25]}  Qe7 {[%clk 0:02:08]} 17. Kb1 {[%clk 0:01:24]}  Bd7 {[%clk 0:02:07]} 18. h5 {[%clk 0:01:24]}  g5 {[%clk 0:02:07]} 19. Nf3 {[%clk 0:00:59]}  Rac8 {[%clk 0:02:04]} 20. Rd2 {[%clk 0:00:59]}  Rxc3 {[%clk 0:01:51]} 21. bxc3 {[%clk 0:00:59]}  Rc8 {[%clk 0:01:50]} 22. Rhd1 {[%clk 0:00:57]}  Nxf3 {[%clk 0:01:24]} 23. gxf3 {[%clk 0:00:57]}  Bxc3 {[%clk 0:01:04]} 24. Qxd6 {[%clk 0:00:55]}  Qxd6 {[%clk 0:00:34]} 25. Rxd6 {[%clk 0:00:54]}  Ba4 {[%clk 0:00:25]} 26. Rxe6 {[%clk 0:00:53]}  Bg7 {[%clk 0:00:20]} 27. Bd3 {[%clk 0:00:49]}  Rc5 {[%clk 0:00:12]} 28. Rb6 {[%clk 0:00:47]}  Bc6 {[%clk 0:00:11]} 29. Kc1 {[%clk 0:00:37]}  Bd4 {[%clk 0:00:09]} 30. Rb4 {[%clk 0:00:35]}  Be3+ {[%clk 0:00:08]} 31. Kb1 {[%clk 0:00:35]}  a5 {[%clk 0:00:07]} 32. Rc4 {[%clk 0:00:32]}  Rb5+ {[%clk 0:00:05]} 33. Ka1 {[%clk 0:00:32]}  Rb6 {[%clk 0:00:02]} 34. c3 {[%clk 0:00:31]}  Bf4 {[%clk 0:00:02]} 35. Rb1 {[%clk 0:00:30]}  Rxb1+ {[%clk 0:00:01]} 36. Kxb1 {[%clk 0:00:31]}  Kf7 {[%clk 0:00:01]} 37. Kc2 {[%clk 0:00:31]}  Ke6 {[%clk 0:00:01]} 38. a4 {[%clk 0:00:30]}  Ke5 {[%clk 0:00:01]} 39. Rc5+ {[%clk 0:00:30]}  Kd6 {[%clk 0:00:01]} 40. Rc4 {[%clk 0:00:28]}  Be8 {[%clk 0:00:02]} 41. Rd4+ {[%clk 0:00:28]}  Kc7 {[%clk 0:00:01]} 42. Bb5 {[%clk 0:00:29]}  Bxh5 {[%clk 0:00:01]} 43. Rc4+ {[%clk 0:00:27]} 1-0


[Site "https://www.chess.com"]

[Event "Titled Tuesday Blitz March 07 Late 2023"]
[White "Hjartarson, Johann"]
[Black "Carrasco Miranda, Andres"]
[WhiteFideId "2300044"]
[BlackFideId "3405990"]
[WhiteElo "2416"]
[BlackElo "2183"]
[Result "1-0"]
[Round "04"]
[TimeControl "180+2"]
[Date "2023.03.07"]
[WhiteClock "0:00:27"]
[BlackClock "0:00:04"]

1. c4 {[%clk 0:03:00]}  Nf6 {[%clk 0:02:59]} 2. g3 {[%clk 0:03:00]}  g6 {[%clk 0:02:57]} 3. Bg2 {[%clk 0:02:59]}  Bg7 {[%clk 0:02:58]} 4. Nc3 {[%clk 0:02:58]}  O-O {[%clk 0:02:58]} 5. d4 {[%clk 0:02:58]}  d6 {[%clk 0:02:57]} 6. Nf3 {[%clk 0:02:58]}  Nc6 {[%clk 0:02:57]} 7. O-O {[%clk 0:02:57]}  Bf5 {[%clk 0:02:56]} 8. d5 {[%clk 0:02:54]}  Na5 {[%clk 0:02:55]} 9. Nd2 {[%clk 0:02:54]}  c5 {[%clk 0:02:55]} 10. e4 {[%clk 0:02:49]}  Bg4 {[%clk 0:02:54]} 11. Qc2 {[%clk 0:02:48]}  Rb8 {[%clk 0:02:50]} 12. b3 {[%clk 0:02:45]}  a6 {[%clk 0:02:50]} 13. a4 {[%clk 0:02:42]}  Bd7 {[%clk 0:02:26]} 14. Bb2 {[%clk 0:02:39]}  e5 {[%clk 0:02:23]} 15. Nd1 {[%clk 0:02:28]}  b5 {[%clk 0:02:06]} 16. axb5 {[%clk 0:02:27]}  axb5 {[%clk 0:02:07]} 17. f4 {[%clk 0:02:19]}  Ng4 {[%clk 0:01:53]} 18. h3 {[%clk 0:02:17]}  Nh6 {[%clk 0:01:39]} 19. fxe5 {[%clk 0:02:16]}  dxe5 {[%clk 0:01:35]} 20. Nf3 {[%clk 0:02:08]}  bxc4 {[%clk 0:01:31]} 21. bxc4 {[%clk 0:02:06]}  Rxb2 {[%clk 0:01:27]} 22. Nxb2 {[%clk 0:02:01]}  f5 {[%clk 0:01:21]} 23. Nd2 {[%clk 0:01:42]}  Nb7 {[%clk 0:01:09]} 24. Ra3 {[%clk 0:01:37]}  Nd6 {[%clk 0:01:09]} 25. Nd3 {[%clk 0:01:30]}  fxe4 {[%clk 0:01:03]} 26. Rxf8+ {[%clk 0:01:20]}  Bxf8 {[%clk 0:01:04]} 27. Nf2 {[%clk 0:01:16]}  Nhf5 {[%clk 0:00:52]} 28. Ndxe4 {[%clk 0:01:15]}  Nd4 {[%clk 0:00:51]} 29. Qa2 {[%clk 0:01:15]}  Nxe4 {[%clk 0:00:31]} 30. Nxe4 {[%clk 0:01:13]}  Bf5 {[%clk 0:00:30]} 31. Ra8 {[%clk 0:01:10]}  Qb6 {[%clk 0:00:30]} 32. Ng5 {[%clk 0:00:57]}  Kg7 {[%clk 0:00:22]} 33. Qa7+ {[%clk 0:00:52]}  Qxa7 {[%clk 0:00:21]} 34. Rxa7+ {[%clk 0:00:51]}  Kh6 {[%clk 0:00:21]} 35. Nf7+ {[%clk 0:00:46]}  Kg7 {[%clk 0:00:20]} 36. Nxe5+ {[%clk 0:00:45]}  Kf6 {[%clk 0:00:18]} 37. Rf7+ {[%clk 0:00:37]}  Kxe5 {[%clk 0:00:18]} 38. Rxf8 {[%clk 0:00:37]}  Bd3 {[%clk 0:00:16]} 39. Bf1 {[%clk 0:00:36]}  Be4 {[%clk 0:00:14]} 40. Kf2 {[%clk 0:00:35]}  g5 {[%clk 0:00:14]} 41. g4 {[%clk 0:00:34]}  h6 {[%clk 0:00:08]} 42. Re8+ {[%clk 0:00:32]}  Kf4 {[%clk 0:00:08]} 43. d6 {[%clk 0:00:32]}  Bc6 {[%clk 0:00:08]} 44. Re7 {[%clk 0:00:31]}  Nb3 {[%clk 0:00:03]} 45. d7 {[%clk 0:00:30]}  Bxd7 {[%clk 0:00:04]} 46. Rxd7 {[%clk 0:00:29]}  Nd4 {[%clk 0:00:05]} 47. Bd3 {[%clk 0:00:28]}  Ne6 {[%clk 0:00:04]} 48. Re7 {[%clk 0:00:28]}  Nd4 {[%clk 0:00:04]} 49. Re4# {[%clk 0:00:27]} 1-0


[Site "https://www.chess.com"]

[Event "Titled Tuesday Blitz March 07 Late 2023"]
[White "Haydon, David L"]
[Black "Guzman Moneo, Alberto"]
[WhiteFideId "415405"]
[BlackFideId "2209616"]
[WhiteElo "2326"]
[BlackElo "2157"]
[Result "1/2-1/2"]
[Round "04"]
[TimeControl "180+2"]
[Date "2023.03.07"]
[WhiteClock "0:02:01"]
[BlackClock "0:00:58"]

1. c4 {[%clk 0:03:00]}  e5 {[%clk 0:02:59]} 2. Nc3 {[%clk 0:03:00]}  Bb4 {[%clk 0:02:59]} 3. g3 {[%clk 0:02:59]}  Bxc3 {[%clk 0:02:58]} 4. bxc3 {[%clk 0:02:59]}  c5 {[%clk 0:02:58]} 5. Bg2 {[%clk 0:03:00]}  d6 {[%clk 0:02:59]} 6. d3 {[%clk 0:02:59]}  Nc6 {[%clk 0:02:59]} 7. e4 {[%clk 0:02:59]}  f5 {[%clk 0:02:58]} 8. Ne2 {[%clk 0:02:59]}  Nf6 {[%clk 0:02:56]} 9. exf5 {[%clk 0:02:59]}  Bxf5 {[%clk 0:02:56]} 10. h3 {[%clk 0:02:59]}  O-O {[%clk 0:02:55]} 11. g4 {[%clk 0:02:59]}  Bg6 {[%clk 0:02:52]} 12. O-O {[%clk 0:02:59]}  Kh8 {[%clk 0:02:34]} 13. f4 {[%clk 0:02:59]}  exf4 {[%clk 0:02:31]} 14. Nxf4 {[%clk 0:02:58]}  Bf7 {[%clk 0:02:31]} 15. Rb1 {[%clk 0:02:54]}  Rb8 {[%clk 0:02:29]} 16. g5 {[%clk 0:02:44]}  Nd7 {[%clk 0:02:26]} 17. Qg4 {[%clk 0:02:41]}  Nde5 {[%clk 0:02:23]} 18. Qh4 {[%clk 0:02:38]}  Ng6 {[%clk 0:02:18]} 19. Qg3 {[%clk 0:02:35]}  Nxf4 {[%clk 0:02:17]} 20. Bxf4 {[%clk 0:02:34]}  Ne5 {[%clk 0:02:10]} 21. Bxe5 {[%clk 0:02:30]}  dxe5 {[%clk 0:02:10]} 22. Rxb7 {[%clk 0:02:30]}  Rxb7 {[%clk 0:02:10]} 23. Bxb7 {[%clk 0:02:30]}  Bg6 {[%clk 0:02:03]} 24. Rxf8+ {[%clk 0:02:28]}  Qxf8 {[%clk 0:02:03]} 25. Be4 {[%clk 0:02:24]}  Bxe4 {[%clk 0:02:00]} 26. dxe4 {[%clk 0:02:25]}  Qd6 {[%clk 0:01:59]} 27. Qf2 {[%clk 0:02:21]}  Kg8 {[%clk 0:01:49]} 28. h4 {[%clk 0:02:19]}  a5 {[%clk 0:01:45]} 29. h5 {[%clk 0:02:15]}  Qd1+ {[%clk 0:01:42]} 30. Kg2 {[%clk 0:02:13]}  Qxh5 {[%clk 0:01:41]} 31. Qf5 {[%clk 0:02:11]}  Qe2+ {[%clk 0:01:38]} 32. Kh3 {[%clk 0:02:10]}  Qe3+ {[%clk 0:01:28]} 33. Kg4 {[%clk 0:02:10]}  Qe2+ {[%clk 0:01:27]} 34. Kh4 {[%clk 0:02:10]}  Qe1+ {[%clk 0:01:25]} 35. Kh3 {[%clk 0:02:08]}  Qe3+ {[%clk 0:01:22]} 36. Kg4 {[%clk 0:02:07]}  Qe2+ {[%clk 0:01:21]} 37. Kh4 {[%clk 0:02:03]}  Qh2+ {[%clk 0:01:13]} 38. Kg4 {[%clk 0:02:02]}  Qg2+ {[%clk 0:01:11]} 39. Kh4 {[%clk 0:02:02]}  Qh2+ {[%clk 0:01:09]} 40. Kg4 {[%clk 0:02:02]}  Qg2+ {[%clk 0:01:00]} 41. Kh4 {[%clk 0:02:01]}  Qh2+ {[%clk 0:00:58]} 1/2-1/2


[Site "https://www.chess.com"]

[Event "Titled Tuesday Blitz March 07 Late 2023"]
[White "Di Berardino, Diego Rafael"]
[Black "Rios Escobar, Adan"]
[WhiteFideId "2105446"]
[BlackFideId "3403645"]
[WhiteElo "2432"]
[BlackElo "2376"]
[Result "1-0"]
[Round "04"]
[TimeControl "180+2"]
[Date "2023.03.07"]
[WhiteClock "0:01:16"]
[BlackClock "0:00:57"]

1. d4 {[%clk 0:02:54]}  Nf6 {[%clk 0:02:59]} 2. Nf3 {[%clk 0:02:52]}  g6 {[%clk 0:02:59]} 3. g3 {[%clk 0:02:49]}  c5 {[%clk 0:02:57]} 4. c3 {[%clk 0:02:42]}  Bg7 {[%clk 0:02:57]} 5. Bg2 {[%clk 0:02:42]}  O-O {[%clk 0:02:55]} 6. O-O {[%clk 0:02:42]}  cxd4 {[%clk 0:02:48]} 7. cxd4 {[%clk 0:02:42]}  d5 {[%clk 0:02:44]} 8. Ne5 {[%clk 0:02:42]}  Nc6 {[%clk 0:02:38]} 9. Nxc6 {[%clk 0:02:41]}  bxc6 {[%clk 0:02:39]} 10. Nc3 {[%clk 0:02:40]}  Bf5 {[%clk 0:02:32]} 11. Bf4 {[%clk 0:02:39]}  Qd7 {[%clk 0:02:25]} 12. Rc1 {[%clk 0:02:33]}  Bh3 {[%clk 0:02:25]} 13. Na4 {[%clk 0:02:32]}  Bxg2 {[%clk 0:02:25]} 14. Kxg2 {[%clk 0:02:32]}  Rfc8 {[%clk 0:02:20]} 15. Nc5 {[%clk 0:02:32]}  Qf5 {[%clk 0:02:17]} 16. Qc2 {[%clk 0:02:26]}  Qh5 {[%clk 0:02:10]} 17. h3 {[%clk 0:02:15]}  h6 {[%clk 0:02:10]} 18. Qd3 {[%clk 0:01:53]}  g5 {[%clk 0:02:08]} 19. Be5 {[%clk 0:01:50]}  Ne8 {[%clk 0:01:55]} 20. g4 {[%clk 0:01:46]}  Qg6 {[%clk 0:01:47]} 21. Qxg6 {[%clk 0:01:46]}  fxg6 {[%clk 0:01:47]} 22. Bxg7 {[%clk 0:01:45]}  Kxg7 {[%clk 0:01:45]} 23. Rc3 {[%clk 0:01:45]}  Nd6 {[%clk 0:01:43]} 24. Rfc1 {[%clk 0:01:38]}  Nb5 {[%clk 0:01:43]} 25. Rd3 {[%clk 0:01:33]}  Kf6 {[%clk 0:01:39]} 26. b3 {[%clk 0:01:27]}  a5 {[%clk 0:01:39]} 27. a4 {[%clk 0:01:26]}  Nd6 {[%clk 0:01:37]} 28. Re3 {[%clk 0:01:26]}  Rc7 {[%clk 0:01:25]} 29. Rcc3 {[%clk 0:01:23]}  h5 {[%clk 0:01:17]} 30. Re6+ {[%clk 0:01:23]}  Kf7 {[%clk 0:01:10]} 31. Rf3+ {[%clk 0:01:22]}  Ke8 {[%clk 0:01:02]} 32. Rxg6 {[%clk 0:01:22]}  Kd8 {[%clk 0:00:57]} 33. Rg8+ {[%clk 0:01:16]}  Ne8 {[%clk 0:00:57]} 34. Rff8 {[%clk 0:01:16]} 1-0


[Site "https://www.chess.com"]

[Event "Titled Tuesday Blitz March 07 Late 2023"]
[White "Suarez Uriel, Adrian"]
[Black "Lewtak, Damian"]
[WhiteFideId "22230874"]
[BlackFideId "1141724"]
[WhiteElo "2331"]
[BlackElo "2302"]
[Result "0-1"]
[Round "04"]
[TimeControl "180+2"]
[Date "2023.03.07"]
[WhiteClock "0:01:01"]
[BlackClock "0:00:12"]

1. e4 {[%clk 0:02:52]}  c5 {[%clk 0:03:00]} 2. Nf3 {[%clk 0:02:51]}  d6 {[%clk 0:03:00]} 3. d4 {[%clk 0:02:51]}  cxd4 {[%clk 0:03:01]} 4. Nxd4 {[%clk 0:02:51]}  Nf6 {[%clk 0:03:02]} 5. Nc3 {[%clk 0:02:52]}  Nc6 {[%clk 0:03:02]} 6. Bg5 {[%clk 0:02:50]}  e6 {[%clk 0:03:03]} 7. Qd2 {[%clk 0:02:49]}  a6 {[%clk 0:03:02]} 8. Nxc6 {[%clk 0:02:45]}  bxc6 {[%clk 0:03:02]} 9. O-O-O {[%clk 0:02:43]}  Be7 {[%clk 0:02:52]} 10. h4 {[%clk 0:02:43]}  d5 {[%clk 0:02:50]} 11. Qe3 {[%clk 0:02:37]}  Qc7 {[%clk 0:02:44]} 12. exd5 {[%clk 0:02:34]}  cxd5 {[%clk 0:02:38]} 13. h5 {[%clk 0:02:22]}  Ng4 {[%clk 0:02:14]} 14. Qd2 {[%clk 0:02:18]}  h6 {[%clk 0:02:10]} 15. Bxe7 {[%clk 0:02:17]}  Qxe7 {[%clk 0:02:11]} 16. f3 {[%clk 0:02:08]}  Nf6 {[%clk 0:02:08]} 17. g4 {[%clk 0:02:09]}  Bb7 {[%clk 0:02:05]} 18. Bd3 {[%clk 0:02:08]}  Nd7 {[%clk 0:02:00]} 19. Rhg1 {[%clk 0:02:02]}  Qb4 {[%clk 0:01:36]} 20. Kb1 {[%clk 0:02:00]}  d4 {[%clk 0:01:31]} 21. Ne4 {[%clk 0:01:58]}  Qxd2 {[%clk 0:01:32]} 22. Rxd2 {[%clk 0:01:58]}  Ke7 {[%clk 0:01:28]} 23. f4 {[%clk 0:01:54]}  Rad8 {[%clk 0:01:24]} 24. Re2 {[%clk 0:01:51]}  Bxe4 {[%clk 0:01:18]} 25. Rxe4 {[%clk 0:01:47]}  Nc5 {[%clk 0:01:19]} 26. Re5 {[%clk 0:01:47]}  Kd6 {[%clk 0:01:14]} 27. Rge1 {[%clk 0:01:41]}  f6 {[%clk 0:01:11]} 28. R5e2 {[%clk 0:01:41]}  Rhe8 {[%clk 0:01:10]} 29. a3 {[%clk 0:01:39]}  a5 {[%clk 0:01:08]} 30. Bg6 {[%clk 0:01:36]}  Re7 {[%clk 0:01:07]} 31. Rd1 {[%clk 0:01:32]}  e5 {[%clk 0:01:02]} 32. c3 {[%clk 0:01:32]}  Ne6 {[%clk 0:00:56]} 33. fxe5+ {[%clk 0:01:30]}  fxe5 {[%clk 0:00:57]} 34. cxd4 {[%clk 0:01:24]}  Nxd4 {[%clk 0:00:54]} 35. Rf2 {[%clk 0:01:22]}  Rb8 {[%clk 0:00:50]} 36. Ka2 {[%clk 0:01:19]}  Reb7 {[%clk 0:00:46]} 37. Be4 {[%clk 0:01:18]}  Rc7 {[%clk 0:00:43]} 38. Rdf1 {[%clk 0:01:17]}  Rbc8 {[%clk 0:00:37]} 39. Rf7 {[%clk 0:01:17]}  Rxf7 {[%clk 0:00:37]} 40. Rxf7 {[%clk 0:01:16]}  Rc7 {[%clk 0:00:36]} 41. Rf8 {[%clk 0:01:11]}  Ne6 {[%clk 0:00:28]} 42. Ra8 {[%clk 0:01:09]}  Nc5 {[%clk 0:00:28]} 43. Bc2 {[%clk 0:01:05]}  e4 {[%clk 0:00:23]} 44. Rxa5 {[%clk 0:01:05]}  e3 {[%clk 0:00:23]} 45. Bd1 {[%clk 0:01:05]}  Rf7 {[%clk 0:00:18]} 46. b4 {[%clk 0:01:04]}  Rf2+ {[%clk 0:00:14]} 47. Kb1 {[%clk 0:01:04]}  Ne4 {[%clk 0:00:14]} 48. Ra6+ {[%clk 0:01:01]}  Kc7 {[%clk 0:00:12]} 49. Kc1 {[%clk 0:01:01]}  e2 {[%clk 0:00:12]} 50. Bxe2 {[%clk 0:01:01]}  Rxe2 {[%clk 0:00:13]} 51. Rxh6 {[%clk 0:01:01]}  gxh6 {[%clk 0:00:12]} 0-1


[Site "https://www.chess.com"]

[Event "Titled Tuesday Blitz March 07 Late 2023"]
[White "Averjanov, Alexey"]
[Black "Harriott, Tyrell"]
[WhiteFideId "14109867"]
[BlackFideId "2086484"]
[WhiteElo "2593"]
[BlackElo "2107"]
[Result "0-1"]
[Round "04"]
[TimeControl "180+2"]
[Date "2023.03.07"]
[WhiteClock "0:00:20"]
[BlackClock "0:00:25"]

1. d4 {[%clk 0:02:55]}  e6 {[%clk 0:03:00]} 2. c4 {[%clk 0:02:46]}  d5 {[%clk 0:02:59]} 3. Nf3 {[%clk 0:02:46]}  c6 {[%clk 0:02:57]} 4. e3 {[%clk 0:02:45]}  Bd6 {[%clk 0:02:57]} 5. g3 {[%clk 0:02:44]}  f5 {[%clk 0:02:56]} 6. Bg2 {[%clk 0:02:44]}  Nf6 {[%clk 0:02:57]} 7. O-O {[%clk 0:02:44]}  Nbd7 {[%clk 0:02:56]} 8. b3 {[%clk 0:02:44]}  Qe7 {[%clk 0:02:52]} 9. a4 {[%clk 0:02:44]}  Ne4 {[%clk 0:02:49]} 10. Ba3 {[%clk 0:02:44]}  Bxa3 {[%clk 0:02:41]} 11. Nxa3 {[%clk 0:02:45]}  O-O {[%clk 0:02:41]} 12. Nc2 {[%clk 0:02:45]}  b6 {[%clk 0:02:41]} 13. Nce1 {[%clk 0:02:45]}  Bb7 {[%clk 0:02:41]} 14. Nd3 {[%clk 0:02:45]}  c5 {[%clk 0:02:41]} 15. cxd5 {[%clk 0:02:42]}  exd5 {[%clk 0:02:40]} 16. Rc1 {[%clk 0:02:38]}  Rfc8 {[%clk 0:02:38]} 17. Nde5 {[%clk 0:02:36]}  Rc7 {[%clk 0:02:13]} 18. Nxd7 {[%clk 0:02:34]}  Qxd7 {[%clk 0:02:12]} 19. Ne5 {[%clk 0:02:33]}  Qe7 {[%clk 0:02:09]} 20. Qe2 {[%clk 0:02:21]}  Rac8 {[%clk 0:02:05]} 21. Rc2 {[%clk 0:01:52]}  c4 {[%clk 0:01:55]} 22. bxc4 {[%clk 0:01:47]}  dxc4 {[%clk 0:01:55]} 23. Rfc1 {[%clk 0:01:38]}  Bd5 {[%clk 0:01:51]} 24. Nxc4 {[%clk 0:01:15]}  Qb4 {[%clk 0:01:39]} 25. Na3 {[%clk 0:00:47]}  Rxc2 {[%clk 0:01:36]} 26. Rxc2 {[%clk 0:00:48]}  Rxc2 {[%clk 0:01:28]} 27. Nxc2 {[%clk 0:00:49]}  Qxa4 {[%clk 0:01:24]} 28. f3 {[%clk 0:00:47]}  Nd6 {[%clk 0:01:19]} 29. Kf2 {[%clk 0:00:38]}  Bc4 {[%clk 0:01:12]} 30. Qd2 {[%clk 0:00:38]}  Qa2 {[%clk 0:01:10]} 31. Ke1 {[%clk 0:00:34]}  a5 {[%clk 0:01:06]} 32. e4 {[%clk 0:00:32]}  fxe4 {[%clk 0:01:05]} 33. fxe4 {[%clk 0:00:33]}  Bb3 {[%clk 0:01:03]} 34. e5 {[%clk 0:00:33]}  Nc4 {[%clk 0:00:58]} 35. Bd5+ {[%clk 0:00:31]}  Kh8 {[%clk 0:00:53]} 36. Qc3 {[%clk 0:00:26]}  Qb1+ {[%clk 0:00:53]} 37. Ke2 {[%clk 0:00:24]}  Qxc2+ {[%clk 0:00:41]} 38. Qxc2 {[%clk 0:00:24]}  Bxc2 {[%clk 0:00:42]} 39. Bxc4 {[%clk 0:00:24]}  g6 {[%clk 0:00:34]} 40. d5 {[%clk 0:00:25]}  Kg7 {[%clk 0:00:34]} 41. d6 {[%clk 0:00:25]}  Kf8 {[%clk 0:00:34]} 42. e6 {[%clk 0:00:22]}  Ba4 {[%clk 0:00:28]} 43. Ke3 {[%clk 0:00:21]}  Bc6 {[%clk 0:00:25]} 44. Kd4 {[%clk 0:00:20]}  b5 {[%clk 0:00:25]} 0-1


[Site "https://www.chess.com"]

[Event "Titled Tuesday Blitz March 07 Late 2023"]
[White "Rian, Kapriaga"]
[Black "Klose, Eli"]
[WhiteFideId "7103263"]
[BlackFideId "16242955"]
[WhiteElo "2362"]
[BlackElo "2540"]
[Result "0-1"]
[Round "04"]
[TimeControl "180+2"]
[Date "2023.03.07"]
[WhiteClock "0:00:07"]
[BlackClock "0:00:21"]

1. d4 {[%clk 0:03:00]}  Nf6 {[%clk 0:02:32]} 2. Nf3 {[%clk 0:02:59]}  g6 {[%clk 0:02:33]} 3. Bg5 {[%clk 0:02:56]}  Bg7 {[%clk 0:02:31]} 4. Nbd2 {[%clk 0:02:55]}  d5 {[%clk 0:02:30]} 5. e3 {[%clk 0:02:54]}  c6 {[%clk 0:02:29]} 6. c4 {[%clk 0:02:53]}  O-O {[%clk 0:02:27]} 7. Be2 {[%clk 0:02:52]}  h6 {[%clk 0:02:24]} 8. Bh4 {[%clk 0:02:51]}  Ne4 {[%clk 0:02:23]} 9. Nxe4 {[%clk 0:02:46]}  dxe4 {[%clk 0:02:24]} 10. Nd2 {[%clk 0:02:46]}  f5 {[%clk 0:02:23]} 11. Bg3 {[%clk 0:02:24]}  Be6 {[%clk 0:02:17]} 12. O-O {[%clk 0:02:21]}  Bf7 {[%clk 0:02:12]} 13. b4 {[%clk 0:02:10]}  a6 {[%clk 0:02:09]} 14. a4 {[%clk 0:02:09]}  Nd7 {[%clk 0:02:10]} 15. Nb3 {[%clk 0:01:46]}  e5 {[%clk 0:02:06]} 16. dxe5 {[%clk 0:01:38]}  Nxe5 {[%clk 0:02:03]} 17. Qc2 {[%clk 0:01:27]}  Qe7 {[%clk 0:01:54]} 18. b5 {[%clk 0:01:00]}  Qb4 {[%clk 0:01:39]} 19. bxc6 {[%clk 0:00:46]}  Nxc6 {[%clk 0:01:34]} 20. Rab1 {[%clk 0:00:43]}  Qxa4 {[%clk 0:01:33]} 21. Bd6 {[%clk 0:00:29]}  Rfd8 {[%clk 0:01:28]} 22. Ra1 {[%clk 0:00:26]}  Bxa1 {[%clk 0:01:20]} 23. Rxa1 {[%clk 0:00:25]}  Qxa1+ {[%clk 0:01:07]} 24. Nxa1 {[%clk 0:00:25]}  Rxd6 {[%clk 0:01:08]} 25. Nb3 {[%clk 0:00:23]}  a5 {[%clk 0:01:03]} 26. g4 {[%clk 0:00:21]}  a4 {[%clk 0:01:01]} 27. Nc5 {[%clk 0:00:20]}  a3 {[%clk 0:00:57]} 28. Qa2 {[%clk 0:00:17]}  Nb4 {[%clk 0:00:54]} 29. Qb3 {[%clk 0:00:16]}  a2 {[%clk 0:00:54]} 30. Qxb4 {[%clk 0:00:16]}  a1=Q+ {[%clk 0:00:54]} 31. Kg2 {[%clk 0:00:16]}  b6 {[%clk 0:00:50]} 32. Nxe4 {[%clk 0:00:14]}  fxe4 {[%clk 0:00:42]} 33. Qxd6 {[%clk 0:00:13]}  Qa5 {[%clk 0:00:39]} 34. h4 {[%clk 0:00:12]}  Qc5 {[%clk 0:00:38]} 35. Qf6 {[%clk 0:00:10]}  Re8 {[%clk 0:00:30]} 36. h5 {[%clk 0:00:09]}  gxh5 {[%clk 0:00:28]} 37. Qxh6 {[%clk 0:00:08]}  Re6 {[%clk 0:00:21]} 38. Qg5+ {[%clk 0:00:07]}  Qxg5 {[%clk 0:00:21]} 0-1


[Site "https://www.chess.com"]

[Event "Titled Tuesday Blitz March 07 Late 2023"]
[White "Kujawski, Adam"]
[Black "Krishnan, Varun"]
[WhiteFideId "1100920"]
[BlackFideId "5054508"]
[WhiteElo "2054"]
[BlackElo "2529"]
[Result "0-1"]
[Round "04"]
[TimeControl "180+2"]
[Date "2023.03.07"]
[WhiteClock "0:00:02"]
[BlackClock "0:00:04"]

1. e4 {[%clk 0:02:57]}  e5 {[%clk 0:02:58]} 2. Nf3 {[%clk 0:02:57]}  Nc6 {[%clk 0:02:59]} 3. Bb5 {[%clk 0:02:57]}  a6 {[%clk 0:02:59]} 4. Ba4 {[%clk 0:02:57]}  Nf6 {[%clk 0:02:58]} 5. O-O {[%clk 0:02:57]}  Be7 {[%clk 0:02:58]} 6. Re1 {[%clk 0:02:57]}  b5 {[%clk 0:02:58]} 7. Bb3 {[%clk 0:02:58]}  O-O {[%clk 0:02:58]} 8. h3 {[%clk 0:02:58]}  d6 {[%clk 0:02:50]} 9. c3 {[%clk 0:02:58]}  Na5 {[%clk 0:02:38]} 10. Bc2 {[%clk 0:02:57]}  c5 {[%clk 0:02:38]} 11. d4 {[%clk 0:02:57]}  Qc7 {[%clk 0:02:35]} 12. Nbd2 {[%clk 0:02:57]}  cxd4 {[%clk 0:02:31]} 13. cxd4 {[%clk 0:02:57]}  Nc6 {[%clk 0:02:31]} 14. d5 {[%clk 0:02:57]}  Nb4 {[%clk 0:02:31]} 15. Bb1 {[%clk 0:02:58]}  a5 {[%clk 0:02:29]} 16. a3 {[%clk 0:02:58]}  Na6 {[%clk 0:02:29]} 17. b4 {[%clk 0:02:58]}  Bd7 {[%clk 0:02:22]} 18. Qb3 {[%clk 0:02:58]}  axb4 {[%clk 0:02:17]} 19. axb4 {[%clk 0:02:56]}  Nc5 {[%clk 0:02:15]} 20. bxc5 {[%clk 0:02:54]}  Rxa1 {[%clk 0:02:14]} 21. c6 {[%clk 0:02:54]}  Bc8 {[%clk 0:02:12]} 22. Qxb5 {[%clk 0:02:31]}  Ra5 {[%clk 0:02:09]} 23. Qb4 {[%clk 0:02:18]}  Ba6 {[%clk 0:02:03]} 24. Nb3 {[%clk 0:01:50]}  Rb5 {[%clk 0:01:59]} 25. Qc3 {[%clk 0:01:37]}  Rfb8 {[%clk 0:01:56]} 26. Bc2 {[%clk 0:01:29]}  Rb4 {[%clk 0:01:55]} 27. Nfd2 {[%clk 0:01:24]}  Nd7 {[%clk 0:01:45]} 28. Ba3 {[%clk 0:00:53]}  Ra4 {[%clk 0:01:44]} 29. Ra1 {[%clk 0:00:52]}  Nb6 {[%clk 0:01:38]} 30. Kh2 {[%clk 0:00:46]}  Nc4 {[%clk 0:01:36]} 31. Nxc4 {[%clk 0:00:36]}  Rxc4 {[%clk 0:01:34]} 32. Qd2 {[%clk 0:00:31]}  h6 {[%clk 0:01:19]} 33. Bxd6 {[%clk 0:00:18]}  Bxd6 {[%clk 0:00:53]} 34. Rxa6 {[%clk 0:00:17]}  Rcb4 {[%clk 0:00:53]} 35. Qc3 {[%clk 0:00:13]}  Qe7 {[%clk 0:00:45]} 36. Na5 {[%clk 0:00:09]}  Qf6 {[%clk 0:00:18]} 37. Nb7 {[%clk 0:00:09]}  Qf4+ {[%clk 0:00:10]} 38. Qg3 {[%clk 0:00:08]}  Bc7 {[%clk 0:00:04]} 39. Qxf4 {[%clk 0:00:07]}  exf4 {[%clk 0:00:04]} 40. d6 {[%clk 0:00:08]}  R8xb7 {[%clk 0:00:04]} 41. cxb7 {[%clk 0:00:06]}  Bb8 {[%clk 0:00:02]} 42. d7 {[%clk 0:00:04]}  Bc7 {[%clk 0:00:02]} 43. Ra8+ {[%clk 0:00:03]}  Kh7 {[%clk 0:00:02]} 44. d8=Q {[%clk 0:00:04]}  Bxd8 {[%clk 0:00:02]} 45. Rxd8 {[%clk 0:00:05]}  Rxb7 {[%clk 0:00:02]} 46. Rd3 {[%clk 0:00:05]}  g6 {[%clk 0:00:02]} 47. Bb3 {[%clk 0:00:06]}  Kg7 {[%clk 0:00:03]} 48. g3 {[%clk 0:00:06]}  g5 {[%clk 0:00:03]} 49. gxf4 {[%clk 0:00:06]}  gxf4 {[%clk 0:00:04]} 50. Kg2 {[%clk 0:00:07]}  f6 {[%clk 0:00:03]} 51. Kf3 {[%clk 0:00:08]}  Kg6 {[%clk 0:00:03]} 52. Bd5 {[%clk 0:00:07]}  Rb2 {[%clk 0:00:03]} 53. Rb3 {[%clk 0:00:08]}  Rd2 {[%clk 0:00:02]} 54. Rb7 {[%clk 0:00:07]}  h5 {[%clk 0:00:02]} 55. Bf7+ {[%clk 0:00:07]}  Kg5 {[%clk 0:00:03]} 56. Bd5 {[%clk 0:00:05]}  Rd3+ {[%clk 0:00:03]} 57. Kg2 {[%clk 0:00:05]}  h4 {[%clk 0:00:03]} 58. Rg7+ {[%clk 0:00:05]}  Kh6 {[%clk 0:00:03]} 59. Rg8 {[%clk 0:00:05]}  f3+ {[%clk 0:00:03]} 60. Kh2 {[%clk 0:00:04]}  Rd2 {[%clk 0:00:03]} 61. Kg1 {[%clk 0:00:02]}  Rd1+ {[%clk 0:00:04]} 62. Kh2 {[%clk 0:00:02]}  Rf1 {[%clk 0:00:04]} 0-1


[Site "https://www.chess.com"]